fUSD/lending_fUSD_20260413
["ID","MTS","AMOUNT","RATE_DAILY","PERIOD"]
[420408026,1776084239040,-3209.46,0.00015999,2]
[420408027,1776084239085,-3209.46,0.00015999,2]
[420408028,1776084239137,-3209.46,0.00015999,2]
[420408029,1776084239198,-3209.46,0.00015999,2]
[420408030,1776084239247,-3209.46,0.00015999,2]
[420408031,1776084239298,-3209.46,0.00015999,2]
[420408032,1776084239404,-3209.46,0.00015999,2]
[420408033,1776084239470,-3209.46,0.00015999,2]
[420408034,1776084239517,-3209.46,0.00015999,2]
[420408035,1776084239586,-3209.46,0.00015999,2]
[420408036,1776084239683,-3209.46,0.00015999,2]
[420408037,1776084239715,-3209.46,0.00015999,2]
[420408038,1776084239753,-3209.46,0.00015999,2]
[420408039,1776084239788,-3209.46,0.00015999,2]
[420408040,1776084239821,-3209.55,0.00015999,2]
[420408041,1776084239847,-500.0,0.00015999,2]
[420408042,1776084239882,-500.0,0.00015999,2]
[420408043,1776084239922,-500.0,0.00015999,2]
[420408044,1776084239959,-769.37,0.00015999,2]
[420408045,1776084239994,-769.37,0.00015999,2]
[420408046,1776084240030,-769.37,0.00015999,2]
[420408047,1776084240068,-769.37,0.00015999,2]
[420408048,1776084240095,-769.37,0.00015999,2]
[420408049,1776084240143,-769.37,0.00015999,2]
[420408050,1776084240174,-769.37,0.00015999,2]
[420408051,1776084240210,-769.37,0.00015999,2]
[420408052,1776084240247,-769.37,0.00015999,2]
[420408053,1776084240283,-769.37,0.00015999,2]
[420408054,1776084240311,-769.37,0.00015999,2]
[420408055,1776084240341,-769.37,0.00015999,2]
[420408056,1776084240376,-769.37,0.00015999,2]
[420408057,1776084240414,-769.37,0.00015999,2]
[420408058,1776084240457,-769.37,0.00015999,2]
[420408059,1776084240501,-769.37,0.00015999,2]
[420408060,1776084240540,-769.37,0.00015999,2]
[420408061,1776084240586,-769.37,0.00015999,2]
[420408062,1776084240636,-527.56541161,0.00015999,2]
[420408063,1776084241542,-241.80458839,0.00015999,2]
[420408064,1776084241625,-769.37,0.00015999,2]
[420408065,1776084241682,-769.37,0.00015999,2]
[420408066,1776084241722,-769.37,0.00015999,2]
[420408067,1776084241763,-769.56258943,0.00015999,2]
[420408068,1776084241801,-370.2400992,0.00015999,2]
[420408069,1776084241846,-500.0,0.00015999,2]
[420408070,1776084241879,-500.0,0.00015999,2]
[420408071,1776084241944,-17.56827602,0.00015999,2]
[420408072,1776084242043,-585.43889392,0.00015999,2]
[420408073,1776084242095,-500.0,0.00015999,2]
[420408074,1776084242139,-321.82350928,0.00015999,2]
[420408075,1776084242186,-370.60903112,0.00015999,2]
[420408076,1776084242590,-500.0,0.00015999,2]
[420408077,1776084242633,-500.0,0.00015999,2]
[420408078,1776084242675,-508.18608604,0.00015999,2]
[420408079,1776084242711,-500.0,0.00015999,2]
[420408080,1776084242747,-500.0,0.00015999,2]
[420408081,1776084242784,-500.0,0.00015999,2]
[420408082,1776084242822,-159.54160172,0.00015999,2]
[420408083,1776084249920,-4934.76830499,0.00015899,2]
[420408084,1776084253086,-1200.0,0.00015898,2]
[420408085,1776084253183,-7600.01,0.00015899,2]
[420408086,1776084267194,164.0,0.000165,30]
[420408087,1776084267460,163.0,0.000165,30]
[420408088,1776084268894,153.0,0.000165,30]
[420408089,1776084269149,152.0,0.000165,30]
[420408090,1776084269804,152.0,0.000165,30]
[420408092,1776084270115,152.0,0.000165,30]
[420408093,1776084290380,1318.0,0.0003013,120]
[420408094,1776084379457,-309.0,0.00010899,2]
[420408095,1776084379492,-155.98,0.00010899,2]
[420408096,1776084379527,-250.0,0.00011989,2]
[420408097,1776084379557,-300.6328008,0.00011989,2]
[420408098,1776084379597,-5000.0,0.00011989,2]
[420408099,1776084379633,-195.0,0.00011989,2]
[420408100,1776084439753,231.0,0.00029333,120]
[420408104,1776084459408,237.0,0.00029092,120]
[420408105,1776084554192,-250.0,0.00013,2]
[420408106,1776084554226,-345.0,0.00013,2]
[420408107,1776084568130,-500.33,0.00020961,30]
[420408108,1776084568172,-1000.66,0.00023206,30]
[420408109,1776084568225,-1500.99,0.00025452,30]
[420408110,1776084568273,-2001.32,0.00027698,30]
[420408111,1776084568326,-240.0,0.00029092,60]
[420408112,1776084568370,-185.0,0.00029333,60]
[420408113,1776084568413,-2501.65,0.00029944,30]
[420408114,1776084568459,-1000.0,0.00032,120]
[420408115,1776084568498,-3001.98,0.0003219,30]
[420408116,1776084568553,-151.62,0.000329,30]
[420408117,1776084568592,-1347.0,0.00032975,30]
[420408118,1776084568629,-396.0,0.00032975,30]
[420408119,1776084568680,-319.0,0.00032975,30]
[420408120,1776084568743,-252.88,0.000333,120]
[420408121,1776084568794,-647.0,0.00033334,30]
[420408122,1776084568901,-1471.0,0.00033334,30]
[420408123,1776084568978,-1347.0,0.00033975,30]
[420408124,1776084569027,-396.0,0.00033975,30]
[420408125,1776084569080,-319.0,0.00033975,30]
[420408126,1776084569147,-150.0,0.000342,30]
[420408127,1776084569206,-3502.31,0.00034435,30]
[420408128,1776084569269,-500.0,0.00034459,60]
[420408129,1776084569325,-500.0,0.00034459,60]
[420408130,1776084569364,-892.3280892,0.00034459,60]
[420408131,1776084569409,-919.4982786,0.00034459,60]
[420408132,1776084569452,-500.0,0.00034459,60]
[420408133,1776084569498,-500.0,0.00034459,60]
[420408134,1776084569542,-514.7270456,0.00034459,60]
[420408135,1776084569597,-732.826962,0.00034459,60]
[420408136,1776084569632,-199.0929921,0.00034459,60]
[420408137,1776084569686,-854.0758544,0.00034459,60]
[420408138,1776084569770,-542.8807256,0.00034459,60]
[420408139,1776084569843,-301.4376887,0.00034459,60]
[420408140,1776084569916,-503.6122884,0.00034459,60]
[420408141,1776084569981,-249.5274609,0.00034459,60]
[420408142,1776084570042,-1347.0,0.00034975,30]
[420408143,1776084570088,-396.0,0.00034975,30]
[420408144,1776084570137,-319.0,0.00034975,30]
[420408145,1776084570176,-151.62,0.000353,30]
[420408146,1776084570272,-245.0,0.00035917,30]
[420408147,1776084570358,-1347.0,0.00035975,30]
[420408148,1776084570410,-396.0,0.00035975,30]
[420408149,1776084570448,-319.0,0.00035975,30]
[420408150,1776084570481,-4002.64,0.00036681,30]
[420408151,1776084570513,-151.62,0.000369,30]
[420408152,1776084570548,-245.0,0.00036917,30]
[420408153,1776084570584,-1347.0,0.00036975,30]
[420408154,1776084570617,-396.0,0.00036975,30]
[420408155,1776084570660,-319.0,0.00036975,30]
[420408156,1776084570700,-160.27,0.000373,30]
[420408157,1776084571175,-3312.57,0.00037679,49]
[420408158,1776084571215,-277.12,0.0003781,30]
[420408159,1776084571259,-161.65654595,0.0003781,30]
[420408160,1776084571298,-161.65654595,0.0003781,30]
[420408161,1776084571346,-161.65654595,0.0003781,30]
[420408162,1776084571387,-161.65,0.0003781,30]
[420408163,1776084571423,-245.0,0.00037917,30]
[420408164,1776084571455,-1347.0,0.00037975,30]
[420408165,1776084571495,-396.0,0.00037975,30]
[420408166,1776084571542,-319.0,0.00037975,30]
[420408167,1776084571579,-555.76,0.00038034,30]
[420408168,1776084571617,-288.26,0.00038034,30]
[420408169,1776084571656,-494.44,0.00038034,30]
[420408170,1776084571699,-3449.21,0.00038034,30]
[420408171,1776084571741,-358.4131093,0.00038629,30]
[420408172,1776084571778,-500.0,0.00038849,120]
[420408173,1776084571824,-245.0,0.00038917,30]
[420408174,1776084571920,-4502.97,0.00038927,30]
[420408175,1776084571970,-1347.0,0.00038975,30]
[420408176,1776084572035,-396.0,0.00038975,30]
[420408177,1776084572083,-319.0,0.00038975,30]
[420408178,1776084572127,-1100.0,0.00039363,30]
[420408179,1776084572175,-2760.96,0.000394,30]
[420408180,1776084572225,-151.62,0.000395,30]
[420408181,1776084572267,-500.0,0.00039577,120]
[420408182,1776084572307,-1100.0,0.00039737,30]
[420408183,1776084572360,-2965.0,0.000398,30]
[420408184,1776084572403,-1100.0,0.00040111,30]
[420408185,1776084572443,-1000.0,0.00040462,120]
[420408186,1776084572489,-1100.0,0.00040485,30]
[420408187,1776084572552,-500.0,0.00040493,120]
[420408188,1776084572592,-1100.0,0.00040859,30]
[420408189,1776084572630,-2000.0,0.00041,60]
[420408190,1776084572677,-1243.57659104,0.00041016,30]
[420408191,1776084572722,-250.0,0.00041096,30]
[420408192,1776084572766,-250.0,0.00041096,30]
[420408193,1776084572813,-250.0,0.00041096,30]
[420408194,1776084572849,-250.0,0.00041096,30]
[420408195,1776084572913,-2760.96,0.000411,30]
[420408196,1776084572953,-5003.29,0.00041173,30]
[420408197,1776084572999,-1100.0,0.00041233,30]
[420408198,1776084573040,-500.0,0.00041347,120]
[420408199,1776084573092,-2000.0,0.000415,60]
[420408200,1776084573129,-1100.0,0.00041607,30]
[420408201,1776084573166,-1116.0,0.00041629,30]
[420408202,1776084573223,-2965.0,0.00041686,30]
[420408203,1776084573257,-1100.0,0.0004198,30]
[420408204,1776084573312,-1199.20597015,0.00041999,30]
[420408205,1776084573387,-250.0,0.00041999,30]
[420408206,1776084573425,-500.0,0.00042,120]
[420408207,1776084573471,-2000.0,0.00042,60]
[420408208,1776084573506,-292.43827184,0.00042,120]
[420408209,1776084573571,-500.0,0.00042137,120]
[420408210,1776084573671,-1000.0,0.00042233,120]
[420408211,1776084573746,-1100.0,0.00042354,30]
[420408212,1776084573790,-200.0,0.00042491,120]
[420408213,1776084573829,-2000.0,0.000425,90]
[420408214,1776084573869,-500.0,0.000425,120]
[420408215,1776084573909,-416.82,0.00042546,120]
[420408216,1776084573951,-216.2,0.00042546,120]
[420408217,1776084574001,-370.83,0.00042546,120]
[420408218,1776084574043,-2586.91,0.00042546,120]
[420408219,1776084574086,-475.0,0.00042627,120]
[420408220,1776084574143,-307.0,0.00042627,120]
[420408221,1776084574189,-151.25,0.000429,60]
[420408222,1776084574267,-2000.0,0.00043,90]
[420408223,1776084574314,-1400.0,0.00043,120]
[420408224,1776084574357,-500.0,0.00043,120]
[420408225,1776084574410,-1100.0,0.00043102,30]
[420408226,1776084574484,-500.0,0.00043118,120]
[420408227,1776084574532,-250.0,0.00043326,115]
[420408228,1776084574606,-250.0,0.00043452,120]
[420408229,1776084574691,-250.0,0.00043452,120]
[420408230,1776084574737,-1100.0,0.00043476,30]
[420408231,1776084574787,-2000.0,0.000435,90]
[420408232,1776084574829,-500.0,0.000435,120]
[420408233,1776084574883,-2965.0,0.00043571,30]
[420408234,1776084574947,-500.0,0.00043781,120]
[420408235,1776084574992,-1100.0,0.0004385,120]
[420408236,1776084575029,-1174.83,0.00044,120]
[420408237,1776084575081,-1368.12,0.00044,120]
[420408238,1776084575127,-2000.0,0.00044,120]
[420408239,1776084575172,-2000.0,0.00044,120]
[420408240,1776084575228,-500.0,0.00044,120]
[420408241,1776084575271,-1000.0,0.00044003,120]
[420408242,1776084575321,-2539.81847,0.0004416,30]
[420408243,1776084575367,-1100.0,0.00044224,120]
[420408244,1776084575429,-1200.0,0.00044356,120]
[420408245,1776084575473,-500.0,0.00044356,120]
[420408246,1776084575522,-1395.48,0.000445,120]
[420408247,1776084575568,-1198.32,0.000445,120]
[420408248,1776084575627,-2000.0,0.000445,120]
[420408249,1776084575662,-500.0,0.000445,120]
[420408250,1776084575730,-1100.0,0.00044598,120]
[420408251,1776084575784,-512.31,0.0004469,120]
[420408252,1776084575837,-512.57,0.0004469,120]
[420408253,1776084575881,-500.0,0.00044889,120]
[420408254,1776084575931,-1200.0,0.00044904,120]
[420408255,1776084576001,-500.0,0.00044904,120]
[420408256,1776084576042,-500.0,0.00044952,90]
[420408257,1776084576101,-500.0,0.00044952,90]
[420408258,1776084576144,-500.0,0.00044952,90]
[420408259,1776084576179,-500.0,0.00044952,90]
[420408260,1776084576219,-500.0,0.00044952,90]
[420408261,1776084576259,-1222.29,0.00045,120]
[420408262,1776084576304,-1423.39,0.00045,120]
[420408263,1776084576340,-510.0,0.00045,120]
[420408264,1776084576378,-500.0,0.00045,120]
[420408265,1776084576413,-854.0,0.00045,120]
[420408266,1776084576464,-2000.0,0.00045,120]
[420408267,1776084576515,-500.0,0.00045,120]
[420408268,1776084576572,-151.0,0.00045067,120]
[420408269,1776084576610,-3636.67797218,0.00045204,30]
[420408270,1776084576688,-500.0,0.00045205,120]
[420408271,1776084576951,-500.0,0.00045205,120]
[420408272,1776084577007,-500.0,0.00045205,120]
[420408273,1776084577056,-1590.92,0.00045205,120]
[420408274,1776084577135,-500.0,0.00045205,120]
[420408275,1776084577195,-500.0,0.00045205,120]
[420408276,1776084577255,-500.0,0.00045205,60]
[420408277,1776084577299,-1590.92,0.00045205,120]
[420408278,1776084577347,-500.0,0.00045205,120]
[420408279,1776084577385,-500.0,0.00045205,120]
[420408280,1776084577442,-500.0,0.00045205,60]
[420408281,1776084577487,-1590.92,0.00045205,120]
[420408282,1776084577525,-500.0,0.00045205,120]
[420408283,1776084577566,-500.0,0.00045205,120]
[420408284,1776084577612,-500.0,0.00045205,120]
[420408285,1776084577652,-1590.92,0.00045205,120]
[420408286,1776084577693,-500.0,0.00045205,60]
[420408287,1776084577737,-500.0,0.00045205,120]
[420408288,1776084577779,-500.0,0.00045205,120]
[420408289,1776084577824,-1590.92,0.00045205,120]
[420408290,1776084577866,-500.0,0.00045205,60]
[420408291,1776084577928,-934.4,0.00045205,120]
[420408292,1776084577983,-500.0,0.00045205,120]
[420408293,1776084578038,-500.0,0.00045205,120]
[420408294,1776084578088,-1590.92,0.00045205,120]
[420408295,1776084578133,-500.0,0.00045205,60]
[420408296,1776084578173,-934.4,0.00045205,120]
[420408297,1776084578211,-500.0,0.00045205,120]
[420408298,1776084578260,-1590.92,0.00045205,120]
[420408299,1776084578299,-500.0,0.00045205,60]
[420408300,1776084578335,-500.0,0.00045205,120]
[420408301,1776084578372,-934.4,0.00045205,120]
[420408302,1776084578405,-500.0,0.00045205,120]
[420408303,1776084578439,-1590.92,0.00045205,120]
[420408304,1776084578477,-500.0,0.00045205,60]
[420408305,1776084578518,-500.0,0.00045205,120]
[420408306,1776084578553,-934.4,0.00045205,120]
[420408307,1776084578594,-934.4,0.00045205,120]
[420408308,1776084578631,-500.0,0.00045205,120]
[420408309,1776084578688,-1590.92,0.00045205,120]
[420408310,1776084578730,-500.0,0.00045205,60]
[420408311,1776084578775,-500.0,0.00045205,120]
[420408312,1776084578856,-934.4,0.00045205,120]
[420408313,1776084578906,-500.0,0.00045205,120]
[420408314,1776084578949,-1590.92,0.00045205,120]
[420408315,1776084579029,-500.0,0.00045205,60]
[420408316,1776084579076,-500.0,0.00045205,120]
[420408317,1776084579122,-500.0,0.00045205,120]
[420408318,1776084579171,-934.4,0.00045205,120]
[420408319,1776084579267,-1590.92,0.00045205,120]
[420408320,1776084579317,-500.0,0.00045205,120]
[420408321,1776084579354,-264.06206983,0.00045205,60]
[420408322,1776084579391,-500.0,0.00045205,120]
[420408323,1776084579428,-934.4,0.00045205,120]
[420408324,1776084579476,-1590.92,0.00045205,120]
[420408325,1776084579515,-500.0,0.00045205,120]
[420408326,1776084579555,-500.0,0.00045205,120]
[420408327,1776084579598,-500.0,0.00045205,120]
[420408328,1776084579637,-934.4,0.00045205,120]
[420408329,1776084579680,-1590.92,0.00045205,120]
[420408330,1776084579721,-500.0,0.00045205,120]
[420408331,1776084579792,-500.0,0.00045205,120]
[420408332,1776084579836,-500.0,0.00045205,120]
[420408333,1776084579879,-934.4,0.00045205,120]
[420408334,1776084579915,-1590.92,0.00045205,120]
[420408335,1776084579955,-500.0,0.00045205,120]
[420408336,1776084580010,-500.0,0.00045205,120]
[420408337,1776084580070,-500.0,0.00045205,120]
[420408338,1776084580117,-934.4,0.00045205,120]
[420408339,1776084580156,-1590.92,0.00045205,120]
[420408340,1776084580191,-500.0,0.00045205,120]
[420408341,1776084580225,-500.0,0.00045205,120]
[420408342,1776084580261,-500.0,0.00045205,120]
[420408343,1776084580303,-934.4,0.00045205,120]
[420408344,1776084580340,-1590.92,0.00045205,120]
[420408345,1776084580383,-500.0,0.00045205,120]
[420408346,1776084580421,-500.0,0.00045205,120]
[420408347,1776084580453,-500.0,0.00045205,120]
[420408348,1776084580491,-934.4,0.00045205,120]
[420408349,1776084580527,-1590.92,0.00045205,120]
[420408350,1776084580562,-500.0,0.00045205,120]
[420408351,1776084580594,-494.882741,0.00045205,120]
[420408352,1776084580634,-500.0,0.00045205,120]
[420408353,1776084580680,-934.4,0.00045205,120]
[420408354,1776084580717,-500.0,0.00045205,120]
[420408355,1776084580765,-500.0,0.00045205,120]
[420408356,1776084580820,-1590.92,0.00045205,120]
[420408357,1776084580866,-934.4,0.00045205,120]
[420408358,1776084580912,-500.0,0.00045205,120]
[420408359,1776084580952,-500.0,0.00045205,120]
[420408360,1776084580994,-1590.92,0.00045205,120]
[420408361,1776084581036,-934.4,0.00045205,120]
[420408362,1776084581080,-500.0,0.00045205,120]
[420408363,1776084581124,-500.0,0.00045205,120]
[420408364,1776084581162,-934.4,0.00045205,120]
[420408365,1776084581222,-1590.92,0.00045205,120]
[420408366,1776084581270,-500.0,0.00045205,120]
[420408367,1776084581318,-500.0,0.00045205,120]
[420408368,1776084581372,-934.4,0.00045205,120]
[420408369,1776084581498,-1590.92,0.00045205,120]
[420408370,1776084581598,-500.0,0.00045205,120]
[420408371,1776084581650,-500.0,0.00045205,120]
[420408372,1776084581717,-934.4,0.00045205,120]
[420408373,1776084581765,-1590.92,0.00045205,120]
[420408374,1776084581830,-500.0,0.00045205,120]
[420408375,1776084581872,-500.0,0.00045205,120]
[420408376,1776084581909,-934.4,0.00045205,120]
[420408377,1776084581945,-500.0,0.00045205,120]
[420408378,1776084581986,-1590.92,0.00045205,120]
[420408379,1776084582022,-160.02329956,0.00045205,120]
[420408380,1776084582055,-500.0,0.00045205,120]
[420408381,1776084582088,-934.4,0.00045205,120]
[420408382,1776084582123,-1591.02790276,0.00045205,120]
[420408383,1776084582156,-500.0,0.00045205,120]
[420408384,1776084582193,-304.1822941,0.00045205,120]
[420408385,1776084582228,-934.4,0.00045205,120]
[420408386,1776084582260,-500.0,0.00045205,120]
[420408387,1776084582294,-507.72617249,0.00045205,120]
[420408388,1776084582570,-934.4,0.00045205,120]
[420408389,1776084582620,-500.0,0.00045205,120]
[420408390,1776084582675,-500.0,0.00045205,120]
[420408391,1776084582739,-934.49143652,0.00045205,120]
[420408392,1776084582794,-500.0,0.00045205,120]
[420408393,1776084582854,-500.0,0.00045205,120]
[420408394,1776084582915,-500.0,0.00045205,120]
[420408395,1776084582966,-500.0,0.00045205,120]
[420408396,1776084583010,-186.80346789,0.00045205,120]
[420408397,1776084583059,-500.0,0.00045205,120]
[420408398,1776084583099,-776.07,0.00045205,120]
[420408399,1776084583136,-500.0,0.00045205,120]
[420408400,1776084583181,-500.0,0.00045205,120]
[420408401,1776084583222,-776.07,0.00045205,120]
[420408402,1776084583286,-500.0,0.00045205,120]
[420408403,1776084583323,-500.0,0.00045205,120]
[420408404,1776084583367,-500.0,0.00045205,120]
[420408405,1776084583404,-500.0,0.00045205,120]
[420408406,1776084583447,-776.07,0.00045205,120]
[420408407,1776084583493,-500.0,0.00045205,120]
[420408408,1776084583535,-500.0,0.00045205,120]
[420408409,1776084583576,-776.07,0.00045205,120]
[420408410,1776084583615,-500.0,0.00045205,120]
[420408411,1776084583649,-500.0,0.00045205,120]
[420408412,1776084583690,-500.0,0.00045205,120]
[420408413,1776084583727,-500.0,0.00045205,120]
[420408414,1776084583765,-776.07,0.00045205,120]
[420408415,1776084583826,-500.0,0.00045205,120]
[420408416,1776084583871,-873.71,0.00045205,120]
[420408417,1776084583907,-500.0,0.00045205,120]
[420408418,1776084583951,-500.0,0.00045205,120]
[420408419,1776084583991,-500.0,0.00045205,120]
[420408420,1776084584035,-500.0,0.00045205,120]
[420408421,1776084584074,-776.07,0.00045205,120]
[420408422,1776084584110,-873.71,0.00045205,120]
[420408423,1776084584161,-500.0,0.00045205,120]
[420408424,1776084584223,-500.0,0.00045205,120]
[420408425,1776084584265,-500.0,0.00045205,120]
[420408426,1776084584306,-500.0,0.00045205,120]
[420408427,1776084584353,-776.07,0.00045205,120]
[420408428,1776084584421,-873.71,0.00045205,120]
[420408429,1776084584486,-500.0,0.00045205,120]
[420408430,1776084584545,-500.0,0.00045205,120]
[420408431,1776084584608,-500.0,0.00045205,120]
[420408432,1776084584714,-500.0,0.00045205,120]
[420408433,1776084584788,-776.07,0.00045205,120]
[420408434,1776084584860,-873.71,0.00045205,120]
[420408435,1776084584922,-500.0,0.00045205,120]
[420408436,1776084584985,-500.0,0.00045205,120]
[420408437,1776084585186,-500.0,0.00045205,120]
[420408438,1776084585258,-500.0,0.00045205,120]
[420408439,1776084585361,-776.07,0.00045205,120]
[420408440,1776084585507,-873.71,0.00045205,120]
[420408441,1776084585573,-500.0,0.00045205,120]
[420408442,1776084585723,-500.0,0.00045205,120]
[420408443,1776084585873,-500.0,0.00045205,120]
[420408444,1776084586034,-500.0,0.00045205,120]
[420408445,1776084586091,-873.71,0.00045205,120]
[420408446,1776084586174,-776.07,0.00045205,120]
[420408447,1776084586295,-500.0,0.00045205,120]
[420408448,1776084586390,-500.0,0.00045205,120]
[420408449,1776084586458,-500.0,0.00045205,120]
[420408450,1776084586506,-500.0,0.00045205,120]
[420408451,1776084586551,-873.71,0.00045205,120]
[420408452,1776084586613,-500.0,0.00045205,120]
[420408453,1776084586658,-500.0,0.00045205,120]
[420408454,1776084586708,-500.0,0.00045205,120]
[420408455,1776084586750,-500.0,0.00045205,120]
[420408456,1776084586799,-873.71,0.00045205,120]
[420408457,1776084586851,-500.0,0.00045205,120]
[420408458,1776084586912,-776.07,0.00045205,120]
[420408459,1776084586960,-500.0,0.00045205,120]
[420408460,1776084587007,-776.07,0.00045205,120]
[420408461,1776084587101,-500.0,0.00045205,120]
[420408462,1776084587256,-500.0,0.00045205,120]
[420408463,1776084587392,-500.0,0.00045205,120]
[420408464,1776084587474,-873.71,0.00045205,120]
[420408465,1776084587584,-500.0,0.00045205,120]
[420408466,1776084587696,-776.07,0.00045205,120]
[420408467,1776084587789,-500.0,0.00045205,120]
[420408468,1776084587861,-500.0,0.00045205,120]
[420408469,1776084587987,-500.0,0.00045205,120]
[420408470,1776084588103,-873.71,0.00045205,120]
[420408471,1776084588187,-776.07,0.00045205,120]
[420408472,1776084588275,-500.0,0.00045205,120]
[420408473,1776084588362,-500.0,0.00045205,120]
[420408474,1776084588432,-500.0,0.00045205,120]
[420408475,1776084588563,-500.0,0.00045205,120]
[420408476,1776084588620,-500.0,0.00045205,120]
[420408477,1776084588659,-873.71,0.00045205,120]
[420408478,1776084588707,-776.07,0.00045205,120]
[420408479,1776084588754,-314.65243184,0.00045205,120]
[420408480,1776084588791,-500.0,0.00045205,120]
[420408481,1776084588827,-873.71,0.00045205,120]
[420408482,1776084588883,-500.0,0.00045205,120]
[420408483,1776084588966,-500.0,0.00045205,120]
[420408484,1776084589035,-776.07,0.00045205,120]
[420408485,1776084589081,-500.0,0.00045205,120]
[420408486,1776084589149,-873.71,0.00045205,120]
[420408487,1776084589195,-500.0,0.00045205,120]
[420408488,1776084589231,-776.07,0.00045205,120]
[420408489,1776084589296,-473.78,0.00045205,120]
[420408490,1776084589370,-873.71,0.00045205,120]
[420408491,1776084589460,-500.0,0.00045205,120]
[420408492,1776084589550,-776.07,0.00045205,120]
[420408493,1776084589620,-486.76768257,0.00045205,120]
[420408494,1776084589684,-873.71,0.00045205,120]
[420408495,1776084589749,-500.0,0.00045205,120]
[420408496,1776084589801,-776.07,0.00045205,120]
[420408497,1776084589846,-776.07,0.00045205,120]
[420408498,1776084589897,-500.0,0.00045205,120]
[420408499,1776084589942,-873.71,0.00045205,120]
[420408500,1776084589990,-500.0,0.00045205,120]
[420408501,1776084590041,-873.71,0.00045205,120]
[420408502,1776084590094,-776.07,0.00045205,120]
[420408503,1776084590409,-873.71,0.00045205,120]
[420408504,1776084590465,-500.0,0.00045205,120]
[420408505,1776084590515,-776.07,0.00045205,120]
[420408506,1776084590586,-873.71,0.00045205,120]
[420408507,1776084590654,-500.0,0.00045205,120]
[420408508,1776084590700,-776.07,0.00045205,120]
[420408509,1776084590743,-873.71,0.00045205,120]
[420408510,1776084590785,-500.0,0.00045205,120]
[420408511,1776084590832,-776.07,0.00045205,120]
[420408512,1776084590870,-300.79253188,0.00045205,120]
[420408513,1776084590936,-873.71,0.00045205,120]
[420408514,1776084590990,-873.71,0.00045205,120]
[420408515,1776084591024,-873.71,0.00045205,120]
[420408516,1776084591062,-873.7459451,0.00045205,120]
[420408517,1776084591102,-1156.41848616,0.00045399,30]
[420408518,1776084591143,-250.0,0.00045399,30]
[420408519,1776084591180,-3547.51,0.000454,120]
[420408520,1776084591233,-500.0,0.00045425,120]
[420408521,1776084591271,-1200.0,0.00045452,120]
[420408522,1776084591317,-500.0,0.00045452,120]
[420408523,1776084591363,-2965.0,0.00045457,120]
[420408524,1776084591411,-1115.157653,0.00045478,30]
[420408525,1776084591445,-250.0,0.00045478,30]
[420408526,1776084591489,-506.57095441,0.00045479,120]
[420408527,1776084591533,-1600.73,0.00045479,120]
[420408528,1776084591579,-1600.73,0.00045479,120]
[420408529,1776084591619,-856.88,0.00045479,120]